[Event "*** SCC Grand Prix: Titled Tuesday Blitz"]
[Site "Chess.com"]
[Date "2020.10.06"]
[Round "5"]
[White "barriochess"]
[Black "shriyanasmallya"]
[Result "1-0"]
[WhiteElo "2305"]
[BlackElo "1625"]
[TimeControl "180+1"]
[EndTime "10:57:37 PDT"]
[Termination "barriochess won by checkmate"]

1. e4 {[%clk 0:02:56.7]} 1... e5 {[%clk 0:02:57.1]} 2. f4 {[%clk 0:02:53.3]}
2... exf4 {[%clk 0:02:56.7]} 3. Nf3 {[%clk 0:02:51.4]} 3... Nc6 {[%clk
0:02:55.7]} 4. d4 {[%clk 0:02:49.5]} 4... Nge7 {[%clk 0:02:50.9]} 5. Bxf4 {[%clk
0:02:47]} 5... Ng6 {[%clk 0:02:48]} 6. Bg3 {[%clk 0:02:42.5]} 6... d6 {[%clk
0:02:46.8]} 7. c3 {[%clk 0:02:39.6]} 7... Bg4 {[%clk 0:02:46.2]} 8. Nbd2 {[%clk
0:02:35.7]} 8... Be7 {[%clk 0:02:42.4]} 9. Bd3 {[%clk 0:02:32.1]} 9... Bxf3
{[%clk 0:02:39.8]} 10. Nxf3 {[%clk 0:02:29.2]} 10... Qd7 {[%clk 0:02:35.3]} 11.
O-O {[%clk 0:02:25.1]} 11... O-O-O {[%clk 0:02:34.1]} 12. b4 {[%clk 0:02:22.5]}
12... d5 {[%clk 0:02:28.3]} 13. e5 {[%clk 0:02:21.9]} 13... f6 {[%clk
0:02:20.4]} 14. Qc2 {[%clk 0:02:20.1]} 14... Kb8 {[%clk 0:02:17.4]} 15. Bf5
{[%clk 0:02:11.9]} 15... Qe8 {[%clk 0:02:16.3]} 16. Rfe1 {[%clk 0:02:08.6]}
16... fxe5 {[%clk 0:02:14.4]} 17. Nxe5 {[%clk 0:02:06.7]} 17... Ngxe5 {[%clk
0:02:13.7]} 18. Bxe5 {[%clk 0:02:07.6]} 18... Nxe5 {[%clk 0:02:13.1]} 19. Rxe5
{[%clk 0:02:06.7]} 19... Qf7 {[%clk 0:02:12.1]} 20. Bxh7 {[%clk 0:01:42.3]}
20... Bd6 {[%clk 0:02:08.3]} 21. Rf1 {[%clk 0:01:38.5]} 21... Qd7 {[%clk
0:01:55]} 22. Rh5 {[%clk 0:01:35.8]} 22... Qg4 {[%clk 0:01:45.1]} 23. Qg6 {[%clk
0:01:34]} 23... Qe2 {[%clk 0:01:35.3]} 24. Rh3 {[%clk 0:01:31.5]} 24... Rhf8
{[%clk 0:01:29.6]} 25. Qb1 {[%clk 0:01:15]} 25... Bf4 {[%clk 0:01:15.6]} 26. Kh1
{[%clk 0:01:08.9]} 26... Be3 {[%clk 0:01:09.4]} 27. Bd3 {[%clk 0:01:05.2]} 27...
Rxf1+ {[%clk 0:01:06.4]} 28. Qxf1 {[%clk 0:01:06.1]} 28... Qxf1+ {[%clk
0:01:05.9]} 29. Bxf1 {[%clk 0:01:04.9]} 29... Rf8 {[%clk 0:01:05.6]} 30. Bd3
{[%clk 0:00:58]} 30... Bd2 {[%clk 0:01:03.7]} 31. Be2 {[%clk 0:00:54.6]} 31...
Re8 {[%clk 0:00:54.4]} 32. Bf1 {[%clk 0:00:48.6]} 32... a6 {[%clk 0:00:53.6]}
33. g4 {[%clk 0:00:46.7]} 33... Re1 {[%clk 0:00:52.1]} 34. Kg2 {[%clk
0:00:46.7]} 34... Ra1 {[%clk 0:00:51.1]} 35. Rd3 {[%clk 0:00:43.6]} 35... Bh6
{[%clk 0:00:49.5]} 36. h4 {[%clk 0:00:40.1]} 36... Rxa2+ {[%clk 0:00:49.8]} 37.
Kf3 {[%clk 0:00:40.3]} 37... Ra1 {[%clk 0:00:47.4]} 38. Bg2 {[%clk 0:00:35.7]}
38... g5 {[%clk 0:00:39.7]} 39. h5 {[%clk 0:00:35.5]} 39... c6 {[%clk
0:00:34.7]} 40. Re3 {[%clk 0:00:34.4]} 40... Ka7 {[%clk 0:00:32.3]} 41. Re6
{[%clk 0:00:33.8]} 41... Bf8 {[%clk 0:00:29.8]} 42. Rf6 {[%clk 0:00:26.8]} 42...
Be7 {[%clk 0:00:27.8]} 43. Rf7 {[%clk 0:00:26.4]} 43... Bd8 {[%clk 0:00:26.2]}
44. h6 {[%clk 0:00:26]} 44... Rc1 {[%clk 0:00:24.3]} 45. h7 {[%clk 0:00:25.4]}
45... Rxc3+ {[%clk 0:00:23.2]} 46. Kf2 {[%clk 0:00:25]} 46... Rc2+ {[%clk
0:00:22.5]} 47. Ke1 {[%clk 0:00:23.3]} 47... Rxg2 {[%clk 0:00:18]} 48. h8=Q
{[%clk 0:00:21.8]} 48... Rg1+ {[%clk 0:00:16.4]} 49. Kf2 {[%clk 0:00:21.1]}
49... Bb6 {[%clk 0:00:13.4]} 50. Kxg1 {[%clk 0:00:20.1]} 50... a5 {[%clk
0:00:12.5]} 51. Qc8 {[%clk 0:00:18.8]} 51... axb4 {[%clk 0:00:11.7]} 52. Qxb7#
{[%clk 0:00:18.4]} 1-0

[Event "*** SCC Grand Prix: Titled Tuesday Blitz"]
[Site "Chess.com"]
[Date "2020.10.06"]
[Round "5"]
[White "Kavyev_Ruslan"]
[Black "emiliocordova"]
[Result "0-1"]
[WhiteElo "2588"]
[BlackElo "2791"]
[TimeControl "180+1"]
[EndTime "10:57:44 PDT"]
[Termination "emiliocordova won by resignation"]

1. d4 {[%clk 0:03:00.9]} 1... Nf6 {[%clk 0:02:58.9]} 2. c4 {[%clk 0:03:00.3]}
2... e6 {[%clk 0:02:58.4]} 3. g3 {[%clk 0:02:59.8]} 3... c5 {[%clk 0:02:58.3]}
4. Nf3 {[%clk 0:03:00.2]} 4... cxd4 {[%clk 0:02:58.1]} 5. Nxd4 {[%clk
0:03:01.1]} 5... d5 {[%clk 0:02:58.7]} 6. Bg2 {[%clk 0:03:00.9]} 6... e5 {[%clk
0:02:58.7]} 7. Nf3 {[%clk 0:03:01.6]} 7... d4 {[%clk 0:02:59.3]} 8. O-O {[%clk
0:03:01.2]} 8... Nc6 {[%clk 0:02:59.9]} 9. e3 {[%clk 0:03:01.7]} 9... Be7 {[%clk
0:03:00.2]} 10. exd4 {[%clk 0:03:01.5]} 10... exd4 {[%clk 0:03:01.1]} 11. Re1
{[%clk 0:03:00.4]} 11... Be6 {[%clk 0:03:01.2]} 12. Bf4 {[%clk 0:02:47.3]} 12...
O-O {[%clk 0:03:00.3]} 13. Ne5 {[%clk 0:02:31.6]} 13... Qb6 {[%clk 0:02:56.3]}
14. Qb3 {[%clk 0:02:31.2]} 14... Rac8 {[%clk 0:02:23]} 15. Nd2 {[%clk
0:02:28.9]} 15... Rfd8 {[%clk 0:02:22.3]} 16. Rad1 {[%clk 0:02:05.7]} 16... Bb4
{[%clk 0:02:17.8]} 17. Nxc6 {[%clk 0:01:43.5]} 17... bxc6 {[%clk 0:02:16.4]} 18.
h3 {[%clk 0:01:36.9]} 18... c5 {[%clk 0:02:13.5]} 19. Qc2 {[%clk 0:01:31.8]}
19... Qa6 {[%clk 0:02:07.8]} 20. b3 {[%clk 0:01:30.4]} 20... d3 {[%clk
0:02:06.5]} 21. Qb1 {[%clk 0:01:25.7]} 21... Qa5 {[%clk 0:02:02.4]} 22. Bg5
{[%clk 0:00:58.4]} 22... Rd6 {[%clk 0:01:51.2]} 23. Bxf6 {[%clk 0:00:56.7]}
23... Bxd2 {[%clk 0:01:51.3]} 24. Be5 {[%clk 0:00:53]} 24... Bxe1 {[%clk
0:01:26.4]} 25. Bxd6 {[%clk 0:00:52.3]} 25... d2 {[%clk 0:01:26.6]} 26. Bf4
{[%clk 0:00:47]} 26... Rd8 {[%clk 0:01:26.4]} 27. Qc2 {[%clk 0:00:46.8]} 27...
h6 {[%clk 0:01:23.9]} 28. Kh2 {[%clk 0:00:40.6]} 28... Rd7 {[%clk 0:01:03.8]}
29. Bc6 {[%clk 0:00:34.3]} 29... Rd4 {[%clk 0:01:02.9]} 30. Be3 {[%clk
0:00:31.8]} 30... Rd6 {[%clk 0:01:02.7]} 31. Bd5 {[%clk 0:00:30.5]} 31... Bxd5
{[%clk 0:01:02.1]} 32. Bxd2 {[%clk 0:00:30.9]} 32... Be4 {[%clk 0:00:44.1]} 33.
Bxa5 {[%clk 0:00:22.9]} 33... Bxc2 {[%clk 0:00:44.3]} 34. Rxe1 {[%clk 0:00:21]}
34... Ra6 {[%clk 0:00:44.6]} 35. Re2 {[%clk 0:00:18.6]} 35... Bb1 {[%clk
0:00:43.6]} 36. Bc7 {[%clk 0:00:17.2]} 36... Bxa2 {[%clk 0:00:41.8]} 37. Bd6
{[%clk 0:00:14.2]} 37... Bxb3 {[%clk 0:00:40]} 38. Bxc5 {[%clk 0:00:14.6]} 38...
Bxc4 {[%clk 0:00:39.6]} 39. Re7 {[%clk 0:00:14.9]} 39... Ra1 {[%clk 0:00:36.3]}
40. Rxa7 {[%clk 0:00:14.6]} 40... Rd1 {[%clk 0:00:35.3]} 41. g4 {[%clk
0:00:12.2]} 41... Bd5 {[%clk 0:00:33.9]} 42. Be3 {[%clk 0:00:12.1]} 42... f6
{[%clk 0:00:33.3]} 43. Rd7 {[%clk 0:00:10.2]} 43... Rh1+ {[%clk 0:00:32.4]} 44.
Kg3 {[%clk 0:00:10.2]} 44... Rg1+ {[%clk 0:00:32.7]} 45. Kf4 {[%clk 0:00:09.6]}
45... Be6 {[%clk 0:00:29.4]} 46. Re7 {[%clk 0:00:09.4]} 46... Bd5 {[%clk
0:00:27.6]} 47. Rd7 {[%clk 0:00:09.4]} 47... Bg2 {[%clk 0:00:27.1]} 48. Kg3
{[%clk 0:00:07.7]} 48... Bc6+ {[%clk 0:00:26.9]} 49. Kh2 {[%clk 0:00:07.6]}
49... Rg2+ {[%clk 0:00:27.3]} 50. Kh1 {[%clk 0:00:08.3]} 50... Rxf2+ {[%clk
0:00:24.1]} 51. Kg1 {[%clk 0:00:08.8]} 51... Rg2+ {[%clk 0:00:23.2]} 52. Kf1
{[%clk 0:00:09.3]} 52... Rg3 {[%clk 0:00:23.5]} 53. Rd8+ {[%clk 0:00:09]} 53...
Kh7 {[%clk 0:00:24.1]} 54. Bd4 {[%clk 0:00:07.9]} 54... Rxh3 {[%clk 0:00:23.5]}
55. Rd6 {[%clk 0:00:08.3]} 55... Bf3 {[%clk 0:00:20.4]} 56. Rd7 {[%clk
0:00:08.1]} 56... Kg6 {[%clk 0:00:21]} 57. Bc5 {[%clk 0:00:05.7]} 57... Bxg4
{[%clk 0:00:21.3]} 58. Bf8 {[%clk 0:00:05.8]} 58... Bxd7 {[%clk 0:00:21.1]} 0-1

[Event "*** SCC Grand Prix: Titled Tuesday Blitz"]
[Site "Chess.com"]
[Date "2020.10.06"]
[Round "5"]
[White "ChainsOfFantasia"]
[Black "Rodalquilar"]
[Result "0-1"]
[WhiteElo "2455"]
[BlackElo "2777"]
[TimeControl "180+1"]
[EndTime "10:57:45 PDT"]
[Termination "Rodalquilar won by resignation"]

1. d4 {[%clk 0:03:00.9]} 1... d5 {[%clk 0:03:00]} 2. Nf3 {[%clk 0:03:01.2]} 2...
Nf6 {[%clk 0:03:00]} 3. c4 {[%clk 0:03:02.1]} 3... e6 {[%clk 0:03:00.3]} 4. g3
{[%clk 0:03:01.7]} 4... Be7 {[%clk 0:03:00.4]} 5. Bg2 {[%clk 0:03:02.1]} 5...
O-O {[%clk 0:03:00.6]} 6. Nc3 {[%clk 0:03:02.6]} 6... dxc4 {[%clk 0:03:00.1]} 7.
Ne5 {[%clk 0:03:02.8]} 7... Qd6 {[%clk 0:03:00.4]} 8. Nxc4 {[%clk 0:02:59.9]}
8... Qa6 {[%clk 0:03:00.5]} 9. b3 {[%clk 0:03:00.2]} 9... Rd8 {[%clk 0:03:00.4]}
10. O-O {[%clk 0:02:59.2]} 10... c5 {[%clk 0:03:00.7]} 11. a4 {[%clk 0:02:53.7]}
11... Bd7 {[%clk 0:02:45.7]} 12. dxc5 {[%clk 0:02:48.1]} 12... Bc6 {[%clk
0:02:38.4]} 13. Qc2 {[%clk 0:02:40.9]} 13... Bxg2 {[%clk 0:02:37.9]} 14. Kxg2
{[%clk 0:02:41.8]} 14... Bxc5 {[%clk 0:02:14.4]} 15. Bf4 {[%clk 0:02:30.8]}
15... Nc6 {[%clk 0:02:10.2]} 16. Nb5 {[%clk 0:02:29.2]} 16... Nb4 {[%clk
0:02:05.2]} 17. Qc3 {[%clk 0:02:28]} 17... Nfd5 {[%clk 0:01:50.8]} 18. Qf3
{[%clk 0:02:23.9]} 18... Qc6 {[%clk 0:01:50.8]} 19. Rac1 {[%clk 0:02:13.7]}
19... a6 {[%clk 0:01:46.6]} 20. Nc3 {[%clk 0:01:18.8]} 20... Nxf4+ {[%clk
0:01:26.3]} 21. gxf4 {[%clk 0:01:19.7]} 21... Nd5 {[%clk 0:01:26.7]} 22. Nxd5
{[%clk 0:01:14]} 22... Rxd5 {[%clk 0:01:07]} 23. Ne5 {[%clk 0:01:13]} 23... Qd6
{[%clk 0:01:07.5]} 24. e3 {[%clk 0:01:06.2]} 24... f6 {[%clk 0:01:02.4]} 25. Nc4
{[%clk 0:01:06]} 25... Qd7 {[%clk 0:00:59.6]} 26. Rfd1 {[%clk 0:01:05.3]} 26...
Rd8 {[%clk 0:00:57]} 27. Rxd5 {[%clk 0:01:04.5]} 27... exd5 {[%clk 0:00:57.1]}
28. Ne5 {[%clk 0:00:57.3]} 28... fxe5 {[%clk 0:00:55.1]} 29. Rxc5 {[%clk
0:00:56.7]} 29... e4 {[%clk 0:00:55.6]} 30. Qh5 {[%clk 0:00:53.4]} 30... Qd6
{[%clk 0:00:38.2]} 31. b4 {[%clk 0:00:50.5]} 31... b6 {[%clk 0:00:38]} 32. Rc1
{[%clk 0:00:38.4]} 32... g6 {[%clk 0:00:19.5]} 33. Qg5 {[%clk 0:00:37.3]} 33...
Rf8 {[%clk 0:00:19]} 34. b5 {[%clk 0:00:36.8]} 34... Rf5 {[%clk 0:00:16.9]} 35.
Rc8+ {[%clk 0:00:33.8]} 35... Kf7 {[%clk 0:00:15.1]} 36. Qh4 {[%clk 0:00:23]}
36... Rh5 {[%clk 0:00:08.7]} 37. Qd8 {[%clk 0:00:22.3]} 37... Qxd8 {[%clk
0:00:08.9]} 38. Rxd8 {[%clk 0:00:22.6]} 38... axb5 {[%clk 0:00:07.6]} 39. axb5
{[%clk 0:00:23.5]} 39... Ke7 {[%clk 0:00:06.2]} 40. Rb8 {[%clk 0:00:23]} 40...
d4 {[%clk 0:00:06.8]} 41. Rxb6 {[%clk 0:00:20.5]} 41... d3 {[%clk 0:00:06.8]}
42. Kf1 {[%clk 0:00:18.2]} 42... Rxh2 {[%clk 0:00:06.7]} 43. Rb7+ {[%clk
0:00:17.1]} 43... Kd6 {[%clk 0:00:06]} 44. Rb8 {[%clk 0:00:16.2]} 44... Rh1+
{[%clk 0:00:05.7]} 45. Kg2 {[%clk 0:00:16.3]} 45... Rb1 {[%clk 0:00:05.9]} 46.
f3 {[%clk 0:00:13.8]} 46... Kc7 {[%clk 0:00:05.2]} 47. Rh8 {[%clk 0:00:09.2]}
47... d2 {[%clk 0:00:05.5]} 48. Rxh7+ {[%clk 0:00:09.5]} 48... Kb6 {[%clk
0:00:06]} 49. Rd7 {[%clk 0:00:08.6]} 49... exf3+ {[%clk 0:00:06.2]} 50. Kxf3
{[%clk 0:00:08.3]} 50... d1=Q+ {[%clk 0:00:07.1]} 51. Rxd1 {[%clk 0:00:08.8]}
51... Rxd1 {[%clk 0:00:08]} 52. e4 {[%clk 0:00:09.7]} 52... Kxb5 {[%clk
0:00:08.5]} 53. f5 {[%clk 0:00:10.3]} 53... gxf5 {[%clk 0:00:08.8]} 54. exf5
{[%clk 0:00:11.2]} 54... Kc6 {[%clk 0:00:09.4]} 55. Kf4 {[%clk 0:00:12.1]} 55...
Kd7 {[%clk 0:00:09.8]} 56. Ke5 {[%clk 0:00:13]} 56... Ke8 {[%clk 0:00:10.4]} 57.
Kf6 {[%clk 0:00:13.9]} 57... Kf8 {[%clk 0:00:10.9]} 0-1

[Event "*** SCC Grand Prix: Titled Tuesday Blitz"]
[Site "Chess.com"]
[Date "2020.10.06"]
[Round "5"]
[White "chenxiaoyuer"]
[Black "akashcheck"]
[Result "1-0"]
[WhiteElo "2484"]
[BlackElo "2249"]
[TimeControl "180+1"]
[EndTime "10:57:46 PDT"]
[Termination "chenxiaoyuer won by checkmate"]

1. e4 {[%clk 0:03:00.9]} 1... e5 {[%clk 0:02:59.2]} 2. Nf3 {[%clk 0:03:00.4]}
2... Nc6 {[%clk 0:02:59.5]} 3. Bb5 {[%clk 0:02:58.5]} 3... a6 {[%clk 0:02:59.4]}
4. Ba4 {[%clk 0:02:57]} 4... Nf6 {[%clk 0:02:59.5]} 5. d3 {[%clk 0:02:56]} 5...
d6 {[%clk 0:02:55.8]} 6. c3 {[%clk 0:02:53.3]} 6... g6 {[%clk 0:02:55.8]} 7. O-O
{[%clk 0:02:48.6]} 7... Bg7 {[%clk 0:02:56.1]} 8. Nbd2 {[%clk 0:02:48.2]} 8...
O-O {[%clk 0:02:56.3]} 9. Re1 {[%clk 0:02:48.4]} 9... b5 {[%clk 0:02:56.2]} 10.
Bc2 {[%clk 0:02:47.3]} 10... Re8 {[%clk 0:02:48.8]} 11. d4 {[%clk 0:02:37.8]}
11... exd4 {[%clk 0:02:43.7]} 12. cxd4 {[%clk 0:02:38.7]} 12... Nb4 {[%clk
0:02:28]} 13. Bb1 {[%clk 0:02:37.6]} 13... c5 {[%clk 0:02:26.5]} 14. d5 {[%clk
0:02:35.9]} 14... a5 {[%clk 0:02:20.2]} 15. a4 {[%clk 0:02:14.7]} 15... Ba6
{[%clk 0:02:09.1]} 16. axb5 {[%clk 0:02:04.3]} 16... Bxb5 {[%clk 0:02:08.9]} 17.
Ra3 {[%clk 0:01:58.9]} 17... Nd7 {[%clk 0:02:07]} 18. Nf1 {[%clk 0:01:50.2]}
18... Ne5 {[%clk 0:02:00.5]} 19. Nxe5 {[%clk 0:01:48.1]} 19... Bxe5 {[%clk
0:01:59.3]} 20. Rh3 {[%clk 0:01:35.8]} 20... c4 {[%clk 0:01:44.5]} 21. Ne3
{[%clk 0:01:14.2]} 21... Bg7 {[%clk 0:01:29.1]} 22. Ng4 {[%clk 0:01:05.5]} 22...
Nd3 {[%clk 0:01:06.9]} 23. Bxd3 {[%clk 0:01:00.1]} 23... cxd3 {[%clk 0:01:07.8]}
24. Nh6+ {[%clk 0:00:50.5]} 24... Bxh6 {[%clk 0:00:54.9]} 25. Bxh6 {[%clk
0:00:49]} 25... Rc8 {[%clk 0:00:52.1]} 26. Qd2 {[%clk 0:00:34.7]} 26... Rc2
{[%clk 0:00:29.9]} 27. Qd1 {[%clk 0:00:32]} 27... Qf6 {[%clk 0:00:25]} 28. Rf3
{[%clk 0:00:20.5]} 28... Qxb2 {[%clk 0:00:23.3]} 29. h4 {[%clk 0:00:15.5]} 29...
d2 {[%clk 0:00:15.3]} 30. Kh2 {[%clk 0:00:09.8]} 30... dxe1=Q {[%clk 0:00:10.4]}
31. Qxe1 {[%clk 0:00:10.7]} 31... Qe5+ {[%clk 0:00:08.9]} 32. Kg1 {[%clk
0:00:05.7]} 32... Qxe4 {[%clk 0:00:05.8]} 33. Re3 {[%clk 0:00:05.7]} 33... Qxe3
{[%clk 0:00:03.4]} 34. Bxe3 {[%clk 0:00:06.6]} 34... Ra8 {[%clk 0:00:03.2]} 35.
Qa1 {[%clk 0:00:05.6]} 35... a4 {[%clk 0:00:02.7]} 36. Bh6 {[%clk 0:00:05.4]}
36... f6 {[%clk 0:00:01.4]} 37. Qxf6 {[%clk 0:00:05.5]} 37... Rc7 {[%clk
0:00:02.1]} 38. Qe6+ {[%clk 0:00:04.9]} 38... Rf7 {[%clk 0:00:02.2]} 39. Qe1
{[%clk 0:00:03.6]} 39... a3 {[%clk 0:00:01.5]} 40. Qa1 {[%clk 0:00:04.5]} 40...
a2 {[%clk 0:00:01.4]} 41. f3 {[%clk 0:00:04.6]} 41... Bc4 {[%clk 0:00:01.7]} 42.
Kf2 {[%clk 0:00:04.8]} 42... Rb8 {[%clk 0:00:02.1]} 43. h5 {[%clk 0:00:03.3]}
43... Rb1 {[%clk 0:00:02.5]} 44. Qd4 {[%clk 0:00:02]} 44... a1=Q {[%clk
0:00:02.6]} 45. Qxc4 {[%clk 0:00:02.1]} 45... Qb2+ {[%clk 0:00:02.2]} 46. Kg3
{[%clk 0:00:02.1]} 46... Qb8 {[%clk 0:00:02.6]} 47. hxg6 {[%clk 0:00:01.8]}
47... Qe8 {[%clk 0:00:03.5]} 48. gxf7+ {[%clk 0:00:01.5]} 48... Qxf7 {[%clk
0:00:04.4]} 49. Qc8+ {[%clk 0:00:01.2]} 49... Qe8 {[%clk 0:00:03.7]} 50. Qxe8#
{[%clk 0:00:01.8]} 1-0

[Event "*** SCC Grand Prix: Titled Tuesday Blitz"]
[Site "Chess.com"]
[Date "2020.10.06"]
[Round "5"]
[White "pastouche06"]
[Black "Jabberwockiez"]
[Result "1-0"]
[WhiteElo "2483"]
[BlackElo "2240"]
[TimeControl "180+1"]
[EndTime "10:57:46 PDT"]
[Termination "pastouche06 won by checkmate"]

1. d4 {[%clk 0:03:00.9]} 1... Nf6 {[%clk 0:02:58.9]} 2. c4 {[%clk 0:03:00.8]}
2... e6 {[%clk 0:02:59.2]} 3. Nc3 {[%clk 0:03:00.8]} 3... Bb4 {[%clk 0:02:59.3]}
4. e3 {[%clk 0:03:00.4]} 4... O-O {[%clk 0:02:59.2]} 5. Ne2 {[%clk 0:02:58.9]}
5... c5 {[%clk 0:02:57.7]} 6. a3 {[%clk 0:02:58.9]} 6... cxd4 {[%clk 0:02:58.1]}
7. exd4 {[%clk 0:02:55.2]} 7... Be7 {[%clk 0:02:55.1]} 8. d5 {[%clk 0:02:52.6]}
8... exd5 {[%clk 0:02:51.7]} 9. cxd5 {[%clk 0:02:53]} 9... d6 {[%clk 0:02:50.3]}
10. g3 {[%clk 0:02:53]} 10... Bg4 {[%clk 0:02:50.1]} 11. Bg2 {[%clk 0:02:52]}
11... Re8 {[%clk 0:02:43.3]} 12. O-O {[%clk 0:02:47.7]} 12... Bf8 {[%clk
0:02:42.6]} 13. h3 {[%clk 0:02:45]} 13... Bh5 {[%clk 0:02:41.5]} 14. g4 {[%clk
0:02:37.9]} 14... Bg6 {[%clk 0:02:35.6]} 15. Nf4 {[%clk 0:02:36.4]} 15... Nbd7
{[%clk 0:02:21.8]} 16. b4 {[%clk 0:02:30.7]} 16... Ne5 {[%clk 0:02:20.8]} 17.
Be3 {[%clk 0:02:20.9]} 17... Nc4 {[%clk 0:02:16.5]} 18. Bd4 {[%clk 0:02:19.3]}
18... h5 {[%clk 0:01:51]} 19. g5 {[%clk 0:02:06.4]} 19... Ne4 {[%clk 0:01:44]}
20. Nxg6 {[%clk 0:02:00.2]} 20... Nxc3 {[%clk 0:01:43.6]} 21. Bxc3 {[%clk
0:02:01.1]} 21... fxg6 {[%clk 0:01:42.4]} 22. h4 {[%clk 0:01:48.9]} 22... Rc8
{[%clk 0:01:35.3]} 23. Qd4 {[%clk 0:01:25]} 23... Ne5 {[%clk 0:01:35.1]} 24. f4
{[%clk 0:00:50.6]} 24... Rc4 {[%clk 0:01:25.6]} 25. Qd2 {[%clk 0:00:50.6]} 25...
Ng4 {[%clk 0:01:20]} 26. Rae1 {[%clk 0:00:48]} 26... Rxe1 {[%clk 0:01:07.1]} 27.
Rxe1 {[%clk 0:00:48.9]} 27... Qb6+ {[%clk 0:01:00.6]} 28. Kh1 {[%clk 0:00:48.7]}
28... Nf2+ {[%clk 0:00:57.7]} 29. Kh2 {[%clk 0:00:48]} 29... Ng4+ {[%clk
0:00:52.2]} 30. Kh1 {[%clk 0:00:48.5]} 30... Qc7 {[%clk 0:00:44.5]} 31. Rc1
{[%clk 0:00:46.8]} 31... Qf7 {[%clk 0:00:42.8]} 32. Bd4 {[%clk 0:00:43.5]} 32...
b5 {[%clk 0:00:25.1]} 33. Rxc4 {[%clk 0:00:39.3]} 33... bxc4 {[%clk 0:00:25.4]}
34. Be4 {[%clk 0:00:28.6]} 34... Qe8 {[%clk 0:00:16.8]} 35. Qc2 {[%clk
0:00:22.2]} 35... Qc8 {[%clk 0:00:13]} 36. Bxg6 {[%clk 0:00:14.8]} 36... c3
{[%clk 0:00:10.8]} 37. Bf5 {[%clk 0:00:14.6]} 37... Nf2+ {[%clk 0:00:09.3]} 38.
Bxf2 {[%clk 0:00:14]} 38... Qc4 {[%clk 0:00:09.4]} 39. Be6+ {[%clk 0:00:12.4]}
39... Kh8 {[%clk 0:00:09.1]} 40. Qg6 {[%clk 0:00:04]} 40... Qf1+ {[%clk
0:00:08.6]} 41. Bg1 {[%clk 0:00:04.4]} 41... Qh3+ {[%clk 0:00:07.6]} 42. Bh2
{[%clk 0:00:04.3]} 42... Qf1+ {[%clk 0:00:07.3]} 43. Bg1 {[%clk 0:00:04.7]}
43... Qh3+ {[%clk 0:00:04.4]} 44. Bxh3 {[%clk 0:00:04.6]} 44... c2 {[%clk
0:00:03.2]} 45. Qxc2 {[%clk 0:00:04.3]} 45... Kg8 {[%clk 0:00:02.6]} 46. Qg6
{[%clk 0:00:04.4]} 46... Be7 {[%clk 0:00:02.3]} 47. Be6+ {[%clk 0:00:05.3]}
47... Kf8 {[%clk 0:00:02.5]} 48. Bd4 {[%clk 0:00:06.2]} 48... Bf6 {[%clk
0:00:01.8]} 49. Qf7# {[%clk 0:00:07.1]} 1-0

[Event "*** SCC Grand Prix: Titled Tuesday Blitz"]
[Site "Chess.com"]
[Date "2020.10.06"]
[Round "5"]
[White "Alexsur1981"]
[Black "suyu28"]
[Result "1-0"]
[WhiteElo "2746"]
[BlackElo "2579"]
[TimeControl "180+1"]
[EndTime "10:57:48 PDT"]
[Termination "Alexsur1981 won by resignation"]

1. e4 {[%clk 0:03:00.9]} 1... c6 {[%clk 0:02:59.9]} 2. Nc3 {[%clk 0:03:00.6]}
2... d5 {[%clk 0:02:58.5]} 3. Qe2 {[%clk 0:03:01.1]} 3... g6 {[%clk 0:02:38.9]}
4. exd5 {[%clk 0:03:00.6]} 4... cxd5 {[%clk 0:02:34.8]} 5. Qb5+ {[%clk
0:03:00.7]} 5... Nc6 {[%clk 0:02:31.8]} 6. Qxd5 {[%clk 0:03:00.8]} 6... Bd7
{[%clk 0:02:32.2]} 7. Bc4 {[%clk 0:03:00.8]} 7... e6 {[%clk 0:02:31.9]} 8. Qf3
{[%clk 0:03:00.7]} 8... Bg7 {[%clk 0:02:31.9]} 9. Qd1 {[%clk 0:03:00]} 9... Nf6
{[%clk 0:02:31.2]} 10. Nf3 {[%clk 0:03:00]} 10... O-O {[%clk 0:02:31]} 11. O-O
{[%clk 0:03:00]} 11... e5 {[%clk 0:02:31.6]} 12. d3 {[%clk 0:02:58.7]} 12... a6
{[%clk 0:02:29.1]} 13. h3 {[%clk 0:02:56.6]} 13... h6 {[%clk 0:02:29.4]} 14. Nd5
{[%clk 0:02:51.7]} 14... Nh5 {[%clk 0:02:20.8]} 15. a3 {[%clk 0:02:41.6]} 15...
Re8 {[%clk 0:02:18.2]} 16. Ba2 {[%clk 0:02:23.6]} 16... Rc8 {[%clk 0:02:17]} 17.
Be3 {[%clk 0:02:21]} 17... Nd4 {[%clk 0:02:13.5]} 18. c3 {[%clk 0:02:18.4]}
18... Nxf3+ {[%clk 0:02:11.4]} 19. Qxf3 {[%clk 0:02:19.3]} 19... Bc6 {[%clk
0:02:10.2]} 20. Rfe1 {[%clk 0:02:10]} 20... Re6 {[%clk 0:01:59.1]} 21. Rad1
{[%clk 0:02:04.1]} 21... Rd6 {[%clk 0:01:58.3]} 22. c4 {[%clk 0:02:04.3]} 22...
Bxd5 {[%clk 0:01:53.8]} 23. cxd5 {[%clk 0:02:05.2]} 23... Nf6 {[%clk 0:01:54.7]}
24. d4 {[%clk 0:01:57.1]} 24... e4 {[%clk 0:01:37.2]} 25. Qf4 {[%clk 0:01:56.7]}
25... Rc2 {[%clk 0:01:30.4]} 26. Bc1 {[%clk 0:01:51.5]} 26... Qd7 {[%clk
0:01:24.9]} 27. Bb1 {[%clk 0:01:48.7]} 27... Rc8 {[%clk 0:01:11.4]} 28. Bxe4
{[%clk 0:01:44.1]} 28... Nxe4 {[%clk 0:01:10.8]} 29. Qxe4 {[%clk 0:01:45]} 29...
Rxd5 {[%clk 0:01:11.2]} 30. Be3 {[%clk 0:01:45.4]} 30... Rd8 {[%clk 0:01:08.9]}
31. Rd2 {[%clk 0:01:42]} 31... f5 {[%clk 0:00:56.3]} 32. Qf3 {[%clk 0:01:42.1]}
32... g5 {[%clk 0:00:42.2]} 33. g3 {[%clk 0:01:41.7]} 33... Rf8 {[%clk
0:00:34.7]} 34. Rd3 {[%clk 0:01:37.2]} 34... Re8 {[%clk 0:00:27.8]} 35. Bd2
{[%clk 0:01:23.5]} 35... Rxe1+ {[%clk 0:00:23]} 36. Bxe1 {[%clk 0:01:24.4]}
36... Rxd4 {[%clk 0:00:20.9]} 37. Rxd4 {[%clk 0:01:24.6]} 37... Bxd4 {[%clk
0:00:21.8]} 38. Bd2 {[%clk 0:01:19.6]} 38... Kh7 {[%clk 0:00:16.7]} 39. b3
{[%clk 0:01:11.9]} 39... Bf6 {[%clk 0:00:14.9]} 40. Be3 {[%clk 0:01:11]} 40...
Kg6 {[%clk 0:00:10.9]} 41. a4 {[%clk 0:01:03]} 41... b5 {[%clk 0:00:10.9]} 42.
axb5 {[%clk 0:00:59.3]} 42... Qxb5 {[%clk 0:00:11.8]} 43. Qd1 {[%clk 0:00:58.2]}
43... Qc6 {[%clk 0:00:10.7]} 44. Qd3 {[%clk 0:00:56.3]} 44... Qe6 {[%clk
0:00:08.5]} 45. g4 {[%clk 0:00:54.3]} 45... h5 {[%clk 0:00:08.6]} 46. gxf5+
{[%clk 0:00:52.9]} 46... Qxf5 {[%clk 0:00:08.8]} 47. Qxa6 {[%clk 0:00:51]} 47...
Qxh3 {[%clk 0:00:08.1]} 48. Qc4 {[%clk 0:00:47.8]} 48... Be5 {[%clk 0:00:05.7]}
49. Qe4+ {[%clk 0:00:47.1]} 49... Kf6 {[%clk 0:00:05.5]} 50. Bxg5+ {[%clk
0:00:46.7]} 50... Kxg5 {[%clk 0:00:03.6]} 51. Qxe5+ {[%clk 0:00:46.5]} 51... Kh6
{[%clk 0:00:03]} 52. Qe3+ {[%clk 0:00:45.7]} 52... Qxe3 {[%clk 0:00:02.2]} 53.
fxe3 {[%clk 0:00:46.6]} 53... Kg5 {[%clk 0:00:03]} 54. b4 {[%clk 0:00:46]} 54...
Kf5 {[%clk 0:00:03.5]} 55. Kg2 {[%clk 0:00:42.1]} 55... Ke4 {[%clk 0:00:03.9]}
56. Kh3 {[%clk 0:00:41.5]} 56... Kd5 {[%clk 0:00:04.5]} 57. Kh4 {[%clk 0:00:37]}
57... Kc4 {[%clk 0:00:05]} 58. Kxh5 {[%clk 0:00:37.6]} 58... Kxb4 {[%clk
0:00:05.5]} 59. Kg5 {[%clk 0:00:38]} 59... Kc5 {[%clk 0:00:06.2]} 60. Kf5 {[%clk
0:00:37.3]} 60... Kd6 {[%clk 0:00:06.7]} 61. e4 {[%clk 0:00:37.2]} 61... Kd7
{[%clk 0:00:04.3]} 62. Kf6 {[%clk 0:00:37.3]} 62... Kd6 {[%clk 0:00:03.9]} 1-0